bitfinex-derivatives/quotes_BNBF0:USTF0_20250211
["timestamp","ask_amount","ask_price","bid_price","bid_amount"]
[1739295700475,0.31663104,631.65,630.09,0.31741497]
[1739295700680,0.27258648,631.64,630.09,0.31741497]
[1739295702482,0.27258648,631.64,628.95,1.18253121]
[1739295702682,6.26152359,632.43,629.32,1.65622273]
[1739295702882,6.26152359,632.42,629.33,0.90715324]
[1739295703088,6.26152359,632.41,629.34,0.90715324]
[1739295703279,2.62141602,632.47,629.33,0.90715324]
[1739295703280,6.26152359,632.4,629.33,0.90715324]
[1739295703478,2.62141602,632.47,629.32,1.65578932]
[1739295703479,6.26152359,632.39,629.34,0.29149646]
[1739295703679,2.62141602,632.47,629.35,0.29149646]
[1739295703680,0.27258648,632.38,629.35,0.29149646]
[1739295703984,0.27258648,632.37,629.36,0.29149646]
[1739295704182,0.27258648,632.36,629.37,0.29149646]
[1739295704378,2.62141602,632.38,629.32,1.65578932]
[1739295704579,0.27243497,632.37,629.33,0.90715323]
[1739295704780,0.27243497,632.36,629.33,0.90715323]
[1739295704980,0.27243497,632.35,629.33,0.90715323]
[1739295705181,0.27243497,632.34,629.33,0.90715323]
[1739295705377,2.37467462,632.33,629.34,0.2914964]
[1739295705580,2.62141602,632.38,629.33,0.61565683]
[1739295705581,0.27243497,632.32,629.35,0.2914964]
[1739295705783,5.98893711,632.77,629.32,1.65578932]
[1739295705980,6.26142775,632.76,629.33,0.90704536]
[1739295706285,6.26142775,632.75,629.34,0.29146068]
[1739295706485,5.98893711,632.74,629.34,0.29146068]
[1739295706679,6.26142775,632.73,629.35,0.29146068]
[1739295706884,1.40611079,632.69,629.33,0.90704536]
[1739295707185,6.26142775,632.68,629.34,0.29146068]
[1739295707386,6.26142775,632.67,629.33,0.90704536]
[1739295707586,6.26142775,632.66,629.33,0.90704536]
[1739295707788,6.26142775,632.65,629.34,0.29146068]
[1739295708089,6.26142775,632.64,629.33,0.90704536]
[1739295708289,6.26142775,632.63,629.34,0.29146068]
[1739295708488,6.26142775,632.62,629.33,0.90704536]
[1739295708682,6.26142775,632.61,629.34,0.29146068]
[1739295708883,6.26142775,632.6,629.35,0.29146068]
[1739295709089,6.26142775,632.59,629.33,0.90704536]
[1739295709288,6.26142775,632.58,629.34,0.29146068]
[1739295709589,4.1591881,632.57,629.35,0.29146068]
[1739295709789,0.27249064,632.56,629.33,0.90704536]
[1739295709989,0.27249064,632.55,629.33,0.90704536]
[1739295710186,0.27249064,632.54,629.33,0.90704536]
[1739295710383,0.27249064,632.53,629.33,0.90704536]
[1739295710587,0.27249064,632.52,629.33,0.90704536]
[1739295710788,0.27249064,632.51,629.33,0.90704536]
[1739295710987,0.27249064,632.5,629.33,0.90704536]
[1739295711290,0.27249064,632.49,629.33,0.90704536]
[1739295711589,0.27249064,632.48,629.34,0.29146068]
[1739295711785,0.27249064,632.47,629.35,0.29146068]
[1739295711987,0.27249064,632.46,629.36,0.29146068]
[1739295712190,2.62141602,632.73,629.33,0.61558468]
[1739295712191,0.27249064,632.45,629.34,0.29146068]
[1739295712385,0.27249064,632.44,629.35,0.29146068]
[1739295712585,0.27249064,632.43,629.36,0.29146068]
[1739295712789,0.27249064,632.42,629.34,0.29146068]
[1739295712991,2.10223965,632.65,629.32,1.65578932]
[1739295713192,0.2724699,632.64,629.33,0.90701637]
[1739295713391,0.2724699,632.63,629.34,0.29145104]
[1739295713585,0.2724699,632.62,629.33,0.90701637]
[1739295713788,0.2724699,632.61,629.33,0.90701637]
[1739295713986,2.37470955,632.6,629.34,0.29145104]
[1739295714186,2.37470955,632.59,629.35,0.29145104]
[1739295714388,2.37470955,632.58,629.36,0.29145104]
[1739295714587,2.37470955,632.57,629.34,0.29145104]
[1739295714786,2.10223965,632.56,629.37,0.29145104]
[1739295715087,2.37470955,632.55,629.38,0.29145104]
[1739295715287,0.2724699,632.54,629.33,0.90701637]
[1739295715490,0.2724699,632.53,629.34,0.29145104]
[1739295715688,0.2724699,632.52,629.35,0.29145104]
[1739295715892,1.40611079,632.5,629.35,0.29145104]
[1739295716089,0.2724699,632.49,629.36,0.29145104]
[1739295716288,0.2724699,632.48,629.34,0.29145104]
[1739295716592,0.2724699,632.47,629.35,0.29145104]
[1739295716789,0.2724699,632.47,629.36,0.29145104]
[1739295716995,0.2724699,632.46,629.34,0.29145104]
[1739295717189,0.2724699,632.45,629.35,0.29145104]
[1739295717390,0.2724699,632.44,629.36,0.29145104]
[1739295717594,0.2724699,632.43,629.33,0.90701637]
[1739295717797,0.2724699,632.42,629.34,0.29145104]
[1739295717996,0.2724699,632.41,629.33,0.90701637]
[1739295718295,0.2724699,632.4,629.34,0.29145104]
[1739295718493,1.40611079,632.5,629.32,1.65548737]
[1739295718692,0.27224313,632.39,629.35,0.29147257]
[1739295718891,1.40611079,632.31,629.36,0.29147257]
[1739295719093,0.27224313,632.3,629.37,0.29147257]
[1739295719295,0.27224313,632.29,629.33,0.90708134]
[1739295719489,0.27224313,632.28,629.34,0.90708134]
[1739295719688,0.27224313,632.27,629.35,0.90708134]
[1739295720192,0.27224313,632.26,629.33,0.90708134]
[1739295720393,0.27224313,632.25,629.34,0.90708134]
[1739295720691,0.27224313,632.24,629.35,0.90708134]
[1739295720895,1.40611079,632.14,629.35,0.90708134]
[1739295721095,0.27224313,632.13,629.36,0.90708134]
[1739295721298,0.27224313,632.12,629.33,0.90708134]
[1739295721492,0.27224313,632.12,629.37,0.90708134]
[1739295721691,0.27224313,632.11,629.38,0.90708134]
[1739295721897,0.27224313,632.1,629.33,0.90708134]
[1739295722196,0.27224313,632.09,629.34,0.90708134]
[1739295722399,0.27224313,632.08,629.35,0.29147257]
[1739295722698,0.27224313,632.07,629.36,0.29147257]
[1739295722897,0.27224313,632.06,629.34,0.29147257]
[1739295723101,0.27224313,632.05,629.35,0.29147257]
[1739295723398,0.27224313,632.05,629.33,0.61560877]
[1739295723399,1.40611079,631.96,629.36,0.29147257]
[1739295723594,0.27224313,631.95,629.37,0.29147257]
[1739295723797,0.27224313,631.94,629.38,0.29147257]
[1739295723997,0.27224313,631.93,629.34,0.29147257]
[1739295724194,0.27224313,631.93,629.35,0.29147257]
[1739295724394,0.27224313,631.92,629.36,0.29147257]
[1739295724596,0.27224313,631.91,629.37,0.29147257]
[1739295724794,0.27224313,631.9,629.38,0.29147257]
[1739295724994,0.27224313,631.89,629.39,0.29147257]
[1739295725197,0.27224313,631.88,629.4,0.29147257]
[1739295725398,1.40611079,631.96,629.32,1.65548737]
[1739295725598,0.27238041,631.95,629.33,0.90702717]
[1739295725797,2.62141602,632.24,629.33,0.90702717]
[1739295725798,1.40611079,631.84,629.49,1.18253121]
[1739295725997,0.27238041,631.83,629.5,0.90702717]
[1739295726194,0.27238041,631.82,629.5,0.90702717]
[1739295726396,0.27238041,631.81,629.5,0.90702717]
[1739295726595,0.27238041,631.8,629.5,0.90702717]
[1739295726798,0.31661099,631.69,629.51,0.31770742]
[1739295727001,0.27238041,631.68,629.52,0.29145462]
[1739295727395,0.31666613,631.58,629.53,0.60915194]
[1739295727594,0.27238041,631.57,629.54,0.6091469]
[1739295727798,0.27238041,631.57,629.55,0.29145462]
[1739295727996,0.3167213,631.47,629.65,1.18253121]
[1739295728199,0.27238041,631.46,629.66,0.90702717]
[1739295728398,0.27238041,631.46,629.67,0.29145462]
[1739295728599,0.27238041,631.46,629.68,0.29145462]
[1739295728797,0.27238041,631.46,629.69,0.29145462]
[1739295729000,0.27227207,631.45,629.7,0.29145691]
[1739295729200,0.27227207,631.46,629.66,0.29145691]
[1739295729395,0.27227207,631.45,629.66,0.29145691]
[1739295729601,0.27227207,631.46,629.66,0.29145691]
[1739295730204,0.27227207,631.46,629.79,1.18253121]
[1739295730205,1.40611079,631.38,629.79,1.18253121]
[1739295730404,0.31677648,631.36,629.8,0.29145691]
[1739295730604,0.27227207,631.35,629.8,0.29145691]
[1739295730806,0.31679153,631.33,629.8,0.29145691]
[1739295731005,0.27227207,631.32,629.8,0.29145691]
[1739295731304,0.31680658,631.3,629.8,0.29145691]
[1739295731504,0.27227207,631.29,629.8,0.29145691]
[1739295731704,0.31682164,631.27,629.8,0.29145691]
[1739295731904,0.27227207,631.26,629.8,0.29145691]
[1739295732303,0.31683168,631.25,629.8,0.29145691]
[1739295734208,0.31683168,631.25,629.81,0.29145691]
[1739295734507,0.31683168,631.25,629.75,1.18253121]
[1739295734707,0.31683168,631.25,629.76,0.60899282]
[1739295735004,0.31683168,631.25,629.77,0.60898777]
[1739295735205,0.31683168,631.25,629.75,1.18253121]
[1739295735206,0.31683168,631.25,629.78,0.60898273]
[1739295735405,0.31683168,631.25,629.79,0.29141152]
[1739295736108,0.27256376,631.24,629.79,0.29141152]
[1739295736309,0.31684172,631.23,629.79,0.29141152]
[1739295736508,0.27256376,631.22,629.79,0.29141152]
[1739295736709,0.31685176,631.21,629.79,0.29141152]
[1739295736904,0.27256376,631.2,629.79,0.29141152]
[1739295737209,0.3168618,631.19,629.8,0.29141152]
[1739295737503,0.3168618,631.19,629.81,0.6089676]
[1739295737708,0.3168618,631.19,629.82,0.60896256]
[1739295738010,0.3168618,631.19,629.83,1.22437908]
[1739295738206,0.3168618,631.19,629.84,0.29141152]
[1739295738402,0.3168618,631.19,629.85,0.60894744]
[1739295738607,0.3168618,631.19,629.86,0.60894239]
[1739295738805,0.3168618,631.19,629.87,0.31752583]
[1739295739111,0.3168618,631.19,629.88,0.29141152]
[1739295739409,0.3168618,631.19,629.89,0.60892727]
[1739295739611,0.3168618,631.19,629.94,1.18253121]
[1739295739811,0.3168618,631.19,629.95,0.90683308]
[1739295740207,0.3168618,631.19,629.95,0.29141152]
[1739295740208,0.2726455,631.18,629.95,0.29141152]
[1739295740808,0.31687184,631.17,629.95,0.29141152]
[1739295741411,0.27266461,631.16,629.95,0.90680374]
[1739295741613,0.31688188,631.15,629.95,0.90680374]
[1739295741911,0.27266962,631.14,629.95,0.90680374]
[1739295742112,0.31689192,631.13,629.95,0.90680374]
[1739295742312,0.31689192,631.13,629.9,0.29141152]
[1739295742611,0.31689192,631.13,629.91,0.29141152]
[1739295742910,0.31689192,631.13,629.92,0.29141152]
[1739295743111,0.31689192,631.13,629.91,0.29141152]
[1739295743313,0.27263838,631.12,629.92,0.29141152]
[1739295743512,0.31689192,631.13,629.89,0.31751575]
[1739295743712,0.31689192,631.13,629.9,0.29137397]
[1739295744613,0.31689192,631.13,629.91,0.29137397]
[1739295744809,0.31689192,631.13,629.92,0.29137397]
[1739295745009,0.31689192,631.13,629.9,0.29137397]
[1739295745206,0.31689192,631.13,629.91,0.29137397]
[1739295745411,0.31689192,631.13,629.89,0.31751575]
[1739295745609,0.31689192,631.13,629.9,0.2913696]
[1739295749615,0.31689192,631.13,629.91,0.31750567]
[1739295749812,0.31689192,631.13,629.92,0.2913696]
[1739295750310,0.31689192,631.13,629.92,0.60887023]
[1739295750516,0.31689192,631.13,629.93,0.90670672]
[1739295750711,0.31689192,631.13,629.93,0.2913696]
[1739295750913,0.31689192,631.13,629.94,0.29129547]
[1739295751113,0.31689192,631.13,629.93,0.29129547]
[1739295751309,0.31689192,631.13,629.94,0.29129547]
[1739295751516,0.31689192,631.13,629.94,0.31749055]
[1739295751817,0.31689192,631.13,629.95,0.29129547]
[1739295752013,0.31689192,631.13,629.96,0.31748047]
[1739295752217,0.31689192,631.13,629.97,0.29129547]
[1739295752517,0.31689192,631.13,629.98,0.31747039]
[1739295752714,0.31689192,631.13,629.99,0.29129547]
[1739295752920,0.31689192,631.13,630.0,0.31746031]
[1739295753118,0.31689192,631.13,630.01,0.29129547]
[1739295753413,0.31689192,631.13,630.02,0.31745023]
[1739295753612,0.31689192,631.13,630.03,0.29129547]
[1739295753820,0.31689192,631.13,630.04,0.31744016]
[1739295754113,0.31689192,631.13,630.05,0.29129547]
[1739295754311,0.31689192,631.13,630.06,0.31743008]
[1739295754515,0.31689192,631.13,630.07,0.29129547]
[1739295754716,0.31689192,631.13,630.08,0.31742001]
[1739295754916,2.61581219,631.76,630.09,0.29129547]
[1739295755118,0.31658593,631.74,630.1,0.31740993]
[1739295755419,0.27272682,631.73,630.11,0.29129547]
[1739295755619,0.27272682,631.73,630.12,0.31739986]
[1739295755817,0.27272682,631.73,630.13,0.29129547]
[1739295755818,0.31660097,631.71,630.13,0.29129547]
[1739295756018,0.31660097,631.71,630.14,0.31738978]
[1739295756218,0.31660097,631.71,630.15,0.29129547]
[1739295756418,0.31660097,631.71,630.16,0.60857708]
[1739295756615,0.27272286,631.7,630.17,0.60857204]
[1739295756819,0.316616,631.68,630.17,0.60857204]
[1739295757014,6.21567629,631.67,630.18,0.29119737]
[1739295757218,0.31663104,631.65,630.18,0.29119737]
[1739295757415,0.27272286,631.64,630.18,0.29119737]
[1739295757721,0.31664107,631.63,630.18,0.29119737]
[1739295757921,0.27272286,631.62,630.18,0.29119737]
[1739295758121,0.31665611,631.6,630.18,0.29119737]
[1739295758322,0.27272286,631.59,630.18,0.29119737]
[1739295758620,0.31666613,631.58,630.18,0.29119737]
[1739295758821,0.27272286,631.57,630.18,0.29119737]
[1739295759021,0.31667616,631.56,630.18,0.29119737]
[1739295759223,0.27272286,631.55,630.18,0.29119737]
[1739295759422,0.31668619,631.54,630.18,0.29119737]
[1739295759624,0.27272286,631.53,630.18,0.29119737]
[1739295759820,0.31669622,631.52,630.18,0.29119737]
[1739295760017,0.31669622,631.52,630.19,0.60858368]
[1739295760222,0.31669622,631.52,630.2,0.60857864]
[1739295760425,0.31669622,631.52,630.21,0.29121908]
[1739295761425,0.2728891,631.51,630.21,0.29121908]
[1739295761622,0.31670625,631.5,630.21,0.29121908]
[1739295762026,0.2728891,631.49,630.21,0.29121908]
[1739295762226,0.31671628,631.48,630.21,0.29121908]
[1739295763527,0.31671628,631.48,630.2,0.31735956]
[1739295763727,0.31671628,631.48,630.21,0.29123933]
[1739295764528,0.31671628,631.48,630.2,0.31735956]
[1739295764728,0.31671628,631.48,630.21,0.2912399]
[1739295769533,0.31671628,631.48,630.22,0.31734949]
[1739295769734,0.31671628,631.48,630.23,0.2912399]
[1739295770829,0.31671628,631.48,630.24,0.31733942]
[1739295771134,0.31671628,631.48,630.25,0.2912399]
[1739295771533,0.31671628,631.48,630.26,0.31732935]
[1739295771733,0.31671628,631.48,630.27,0.2912399]
[1739295771931,0.31671628,631.48,630.28,0.60855918]
[1739295772134,0.31671628,631.48,630.29,0.90619309]
[1739295772336,0.31671628,631.48,630.3,0.2912399]
[1739295772535,0.31671628,631.48,630.31,0.29113168]
[1739295772729,0.31671628,631.48,630.32,0.60843082]
[1739295772934,0.31671628,631.48,630.33,0.60842579]
[1739295773236,0.31671628,631.48,630.34,0.90605288]
[1739295773634,0.31671628,631.48,630.35,1.22333692]
[1739295773832,0.31671628,631.48,630.36,1.22333189]
[1739295774035,0.31671628,631.48,630.37,0.60840566]
[1739295774338,0.31671628,631.48,630.38,0.29113168]
[1739295774531,2.08562066,632.18,630.39,0.29113168]
[1739295774734,0.3163756,632.16,630.4,0.29113168]
[1739295774932,0.27300105,632.15,630.41,0.29113168]
[1739295775132,0.31639061,632.13,630.42,0.60838049]
[1739295775338,0.27300105,632.12,630.43,0.60837546]
[1739295775534,0.31640563,632.1,630.44,0.60837043]
[1739295775739,0.27300105,632.09,630.45,1.2232866]
[1739295775942,0.31642064,632.07,630.46,0.60836037]
[1739295776241,0.27300105,632.06,630.47,1.22327653]
[1739295776437,0.31643066,632.05,630.48,1.2232715]
[1739295776639,0.27300105,632.04,630.49,0.60834527]
[1739295776935,0.31644067,632.03,630.5,1.22326144]
[1739295777243,0.27300105,632.02,630.51,1.22325641]
[1739295777541,0.27300105,632.02,630.52,0.90605288]
[1739295777743,0.27300105,632.02,630.52,0.29113168]
[1739295778040,0.27296295,632.01,630.51,0.31720353]
[1739295778240,0.27296295,632.02,630.52,0.29106334]
[1739295779645,0.31645569,632.0,630.53,0.29110555]
[1739295779941,0.27296253,631.99,630.54,0.29110555]
[1739295780146,0.31647071,631.97,630.52,0.29110555]
[1739295780347,0.27296253,631.96,630.53,0.29110555]
[1739295780543,0.31648574,631.94,630.54,0.29110555]
[1739295780749,0.27296253,631.93,630.52,0.29110555]
[1739295781049,0.31649575,631.92,630.53,0.31719347]
[1739295781246,0.27296253,631.91,630.54,0.29110555]
[1739295781546,0.31650577,631.9,630.54,0.29110555]
[1739295781847,0.27296253,631.89,630.54,0.29110555]
[1739295782046,0.31651579,631.88,630.54,0.29110555]
[1739295782347,0.27296253,631.87,630.54,0.29110555]
[1739295782543,0.31652581,631.86,630.55,0.29110555]
[1739295782950,0.27296253,631.85,630.56,0.29110555]
[1739295783246,0.31652581,631.86,630.57,0.29110555]
[1739295783447,0.31652581,631.86,630.54,0.61481939]
[1739295783448,0.31652581,631.86,630.58,0.29110555]
[1739295783639,0.31652581,631.86,630.59,0.29110555]
[1739295783845,0.31652581,631.86,630.6,0.29110555]
[1739295784045,0.31652581,631.86,630.61,0.29110555]
[1739295784242,0.31652581,631.86,630.62,0.29110555]
[1739295784642,0.31652581,631.86,630.63,0.29110555]
[1739295784842,0.31652581,631.86,630.64,0.29110555]
[1739295785047,0.31652581,631.86,630.65,0.29110555]
[1739295785246,0.31652581,631.86,630.66,0.60823363]
[1739295785440,0.31652581,631.86,630.67,0.90592494]
[1739295785642,0.31652581,631.86,630.68,0.90592494]
[1739295785843,0.31652581,631.86,630.67,0.29110555]
[1739295786047,0.31652581,631.86,630.66,0.31712808]
[1739295786348,0.31652581,631.86,630.67,0.29102847]
[1739295786541,0.27304663,631.85,630.67,0.29102847]
[1739295788446,0.27304663,631.85,630.66,0.31712808]
[1739295788447,0.31652581,631.86,630.66,0.31712808]
[1739295788847,0.27312565,631.85,630.66,0.31712808]
[1739295789150,0.31652581,631.86,630.66,0.31712808]
[1739295791546,0.27314844,631.85,630.66,0.31712808]
[1739295791751,0.31652581,631.86,630.07,0.61492396]
[1739295791946,0.27313866,631.85,630.09,0.31741497]
[1739295792143,0.27313866,631.85,630.1,0.2911572]
[1739295792144,0.31654084,631.83,630.1,0.2911572]
[1739295792349,0.27313866,631.82,630.1,0.2911572]
[1739295792547,0.27313866,631.82,630.12,0.31739986]
[1739295792750,0.31655587,631.8,630.12,0.31739986]
[1739295792947,0.27313866,631.79,630.13,0.2911572]
[1739295793247,0.31656589,631.78,630.14,0.60855351]
[1739295793449,0.2731258,631.77,630.15,0.60854847]
[1739295793647,0.31658092,631.75,630.16,0.60854344]
[1739295793850,0.2731258,631.74,630.17,0.29116373]
[1739295794048,0.2731258,631.74,630.18,0.60853337]
[1739295794248,0.2731258,631.74,630.17,0.61498999]
[1739295794249,0.31659094,631.73,630.19,0.60852833]
[1739295794453,0.2731258,631.72,630.2,0.31735956]
[1739295794654,0.31660097,631.71,630.2,0.31735956]
[1739295794954,0.2731258,631.7,630.21,0.29116373]
[1739295795454,0.2731258,631.7,630.22,0.31734949]
[1739295795656,0.31661099,631.69,630.23,0.29116373]
[1739295795852,0.31661099,631.69,630.24,0.31733942]
[1739295796053,0.2731258,631.68,630.25,0.29116373]
[1739295796350,0.31662102,631.67,630.26,0.31732935]
[1739295796851,0.2731258,631.66,630.27,0.29116373]
[1739295797055,0.31663104,631.65,630.27,0.29116373]
[1739295797254,0.2731258,631.64,630.27,0.29116373]
[1739295797454,0.31664107,631.63,630.27,0.29116373]
[1739295797750,0.2731258,631.62,630.27,0.29116373]
[1739295798055,0.31665109,631.61,630.27,0.29116373]
[1739295798257,0.2731258,631.6,630.27,0.29116373]
[1739295798450,0.31666112,631.59,630.27,0.29116373]
[1739295798654,0.2731258,631.58,630.27,0.29116373]
[1739295798855,0.31667115,631.57,630.27,0.29116373]
[1739295799051,0.2731258,631.56,630.27,0.29116373]
[1739295799256,0.31667616,631.56,630.27,0.29116373]
[1739295800248,0.31667616,631.56,630.28,0.2912131]
[1739295800453,0.31667616,631.56,630.27,0.2912131]
[1739295800755,0.31667616,631.56,630.28,0.2912131]
[1739295800954,0.31667616,631.56,630.27,0.2912131]
[1739295801850,0.31667616,631.56,630.26,0.31732935]
[1739295802055,0.31667616,631.56,630.27,0.2911737]
[1739295802255,0.31667616,631.56,630.28,0.31731928]
[1739295802455,0.31667616,631.56,630.29,0.2911737]
[1739295802655,0.31667616,631.56,630.3,0.31730921]
[1739295802956,0.31667616,631.56,630.31,0.2911737]
[1739295803456,0.31667616,631.56,630.31,0.60847788]
[1739295803656,0.31667616,631.56,630.32,0.2911737]
[1739295805653,0.31667616,631.56,630.33,0.29118323]
[1739295805957,0.31667616,631.56,630.34,0.29118323]
[1739295806158,0.31667616,631.56,630.32,0.29118323]
[1739295806457,0.31667616,631.56,630.33,0.29118323]
[1739295806857,0.31667616,631.56,630.34,0.29118323]
[1739295807052,0.31667616,631.56,630.35,0.29118323]
[1739295807252,0.31667616,631.56,630.36,0.29118323]
[1739295807456,0.31667616,631.56,630.32,0.29118323]
[1739295807655,0.31667616,631.56,630.33,0.29118323]
[1739295807956,0.31667616,631.56,630.34,0.29118323]
[1739295808157,0.31667616,631.56,630.32,0.29118323]
[1739295808357,0.31667616,631.56,630.33,0.29118323]
[1739295808660,0.31667616,631.56,630.34,0.29118323]
[1739295808961,0.31667616,631.56,630.32,0.29118323]
[1739295809158,0.31667616,631.56,630.31,0.31730418]
[1739295810960,0.31667616,631.56,630.32,0.29120132]
[1739295814059,0.31667616,631.56,630.33,0.31729411]
[1739295814253,0.31667616,631.56,630.34,0.29120132]
[1739295814454,0.31667616,631.56,630.35,0.31728404]
[1739295814759,0.31667616,631.56,630.36,0.29114491]
[1739295814958,0.31667616,631.56,630.37,0.31727398]
[1739295815259,0.31667616,631.56,630.38,0.29114491]
[1739295815459,0.31667616,631.56,630.39,0.31726391]
[1739295815757,0.31667616,631.56,630.4,0.29114491]
[1739295815959,0.31667616,631.56,630.4,0.60840379]
[1739295816161,0.31667616,631.56,630.41,0.29114491]
[1739295816358,0.31667616,631.56,630.42,0.29113773]
[1739295816658,0.31667616,631.56,630.43,0.29113773]
[1739295816851,0.31667616,631.56,630.41,0.29113773]
[1739295818357,0.31667616,631.56,630.4,0.31725888]
[1739295818358,0.31667616,631.56,630.42,0.2911446]
[1739295818557,0.31667616,631.56,630.41,0.2911446]
[1739295818759,0.31667616,631.56,630.42,0.2911446]
[1739295818959,0.31667616,631.56,630.41,0.2911446]
[1739295819959,0.31667616,631.56,630.4,0.31725888]
[1739295820261,0.31667616,631.56,630.41,0.29114176]
[1739295821667,0.31667616,631.56,630.4,0.31725888]
[1739295821968,0.27343477,631.55,630.41,0.29119584]
[1739295822170,0.31667616,631.56,630.41,0.29119584]
[1739295822562,0.31667616,631.56,630.42,0.2912037]
[1739295822765,0.31667616,631.56,630.43,0.2912037]
[1739295823067,0.31667616,631.56,630.44,0.2912037]
[1739295823260,0.27343779,631.55,630.41,0.2912037]
[1739295823465,0.31667616,631.56,630.4,0.31725888]
[1739295823659,0.27343973,631.55,630.41,0.2912065]
[1739295824361,0.31667616,631.56,630.41,0.2912065]
[1739295824767,0.31667616,631.56,630.42,0.29119372]
[1739295824965,0.31667616,631.56,630.41,0.29119372]
[1739295825168,0.31667616,631.56,630.42,0.29119372]
[1739295825467,0.31667616,631.56,630.41,0.29119372]
[1739295825668,0.31667616,631.56,630.42,0.29119372]
[1739295825870,0.31667616,631.56,630.41,0.29119372]
[1739295826068,0.31667616,631.56,630.42,0.29119372]
[1739295826262,0.31667616,631.56,630.41,0.29119372]
[1739295827264,0.31667616,631.56,630.4,0.31725888]
[1739295827469,0.31667616,631.56,630.41,0.29120915]
[1739295827967,0.2734302,631.55,630.41,0.29120915]
[1739295828168,0.31668619,631.54,630.41,0.29120915]
[1739295828767,0.27342448,631.53,630.41,0.29120915]
[1739295828971,0.31669622,631.52,630.4,0.31725888]
[1739295829166,0.31669622,631.52,630.41,0.29122455]
[1739295833678,0.27357096,631.51,630.41,0.29122455]
[1739295833869,0.31669622,631.52,630.41,0.29122455]
[1739295834568,0.31669622,631.52,630.42,0.29116593]
[1739295834770,0.31669622,631.52,630.41,0.29116593]
[1739295834970,0.31669622,631.52,630.42,0.29116593]
[1739295835272,0.31669622,631.52,630.43,0.29116593]
[1739295835467,0.31669622,631.52,630.44,0.29116593]
[1739295835667,0.31669622,631.52,630.41,0.29116593]
[1739295835871,0.31669622,631.52,630.42,0.29116593]
[1739295836069,0.31669622,631.52,630.41,0.29116593]
[1739295836274,0.31669622,631.52,630.4,0.31725888]
[1739295836473,0.31669622,631.52,630.41,0.29116452]
[1739295838471,5.9614513,631.51,630.41,0.29116452]
[1739295838675,5.9614513,631.5,630.41,0.29116452]
[1739295838874,5.9614513,631.49,630.41,0.29116452]
[1739295839073,5.9614513,631.48,630.41,0.29116452]
[1739295839378,5.9614513,631.47,630.41,0.29116452]
[1739295839679,5.9614513,631.46,630.41,0.29116452]
[1739295839878,5.9614513,631.45,630.41,0.29116452]
[1739295840074,3.86838403,631.44,630.41,0.29116452]
[1739295840279,2.09306727,631.45,630.41,0.29116452]
[1739295840480,2.61433955,631.46,630.41,0.29116452]
[1739295841479,0.31669622,631.52,630.41,0.29116452]
[1739295841879,0.31669622,631.52,630.42,0.29116452]
[1739295842181,0.31669622,631.52,630.42,0.9061517]
[1739295842381,0.31669622,631.52,630.43,0.9061517]
[1739295842583,0.31669622,631.52,630.44,0.9061517]
[1739295842783,0.31669622,631.52,630.45,0.31723372]
[1739295843184,0.31669622,631.52,630.46,0.29106891]
[1739295843584,8.57579085,631.69,630.46,0.29106891]
[1739295843777,5.9614513,631.68,630.47,0.31722365]
[1739295843981,3.86838403,631.67,630.48,0.29106891]
[1739295844178,3.86838403,631.67,630.49,0.6082825]
[1739295844383,2.09306727,631.68,630.5,0.90586353]
[1739295844580,2.61433955,631.69,630.51,0.29106891]
[1739295844784,2.61433955,631.69,630.51,0.90586353]
[1739295844985,2.61433955,631.69,630.52,1.22306203]
[1739295845286,2.61433955,631.69,630.53,1.223057]
[1739295845485,2.61433955,631.69,630.54,0.60825735]
[1739295845686,5.9614513,631.9,630.55,0.31718341]
[1739295845887,6.55131985,631.89,630.56,0.29106891]
[1739295846184,6.55132486,631.88,630.56,0.60824729]
[1739295846387,6.55132987,631.87,630.57,0.29106891]
[1739295846686,6.55133488,631.86,630.57,0.29106891]
[1739295846888,6.23480907,631.85,630.57,0.29106891]
[1739295847184,5.9614513,631.84,630.57,0.29106891]
[1739295847399,5.9614513,631.83,630.57,0.29106891]
[1739295847682,6.23470791,631.82,630.57,0.29106891]
[1739295847989,5.9614513,631.81,630.57,0.29106891]
[1739295848190,5.9614513,631.8,630.57,0.29106891]
[1739295848386,5.9614513,631.79,630.57,0.29106891]
[1739295848583,5.9614513,631.78,630.57,0.29106891]
[1739295848784,5.9614513,631.77,630.57,0.29106891]
[1739295848988,3.86838403,631.76,630.57,0.29106891]
[1739295849386,2.09306727,631.77,630.57,0.29106891]
[1739295849584,2.61433955,631.78,630.57,0.29106891]
[1739295849585,3.86838403,631.76,630.57,0.29106891]
[1739295849789,5.9614513,631.75,630.58,0.29106891]
[1739295850088,5.9614513,631.74,630.59,0.29106891]
[1739295850290,5.9614513,631.73,630.6,0.29106891]
[1739295850490,5.9614513,631.72,630.61,0.29106891]
[1739295850690,5.9614513,631.71,630.57,0.29106891]
[1739295850889,5.9614513,631.7,630.58,0.60823723]
[1739295851089,5.9614513,631.69,630.59,0.6082322]
[1739295851289,5.9614513,631.68,630.6,0.29106891]
[1739295851490,5.9614513,631.67,630.6,0.29106891]
[1739295851690,5.9614513,631.66,630.6,0.29106891]
[1739295851891,5.9614513,631.65,630.59,0.31716329]
[1739295852092,5.9614513,631.64,630.6,0.29105449]
[1739295852391,5.9614513,631.63,630.6,0.29105449]
[1739295852592,5.9614513,631.62,630.6,0.29105449]
[1739295852794,5.9614513,631.61,630.6,0.29105449]